fUST/lending_fUST_20241227
["ID","MTS","AMOUNT","RATE_DAILY","PERIOD"]
[346745436,1735260653831,-500.0,0.00015092,2]
[346745437,1735260653840,-500.0,0.00015092,2]
[346745438,1735260653850,-500.0,0.00015092,2]
[346745439,1735260653860,-850.96,0.00015092,2]
[346745440,1735260653869,-500.0,0.00015092,2]
[346745441,1735260653879,-500.0,0.00015092,2]
[346745442,1735260653888,-500.0,0.00015092,2]
[346745443,1735260653898,-500.0,0.00015092,2]
[346745444,1735260653908,-500.0,0.00015092,2]
[346745445,1735260653917,-500.0,0.00015092,2]
[346745446,1735260653926,-500.0,0.00015092,2]
[346745447,1735260653935,-500.0,0.00015092,2]
[346745448,1735260653944,-500.0,0.00015092,2]
[346745449,1735260653953,-500.0,0.00015092,2]
[346745450,1735260653963,-500.0,0.00015092,2]
[346745451,1735260653973,-510.31,0.00015092,2]
[346745452,1735260653983,-500.0,0.00015092,2]
[346745453,1735260653993,-689.53,0.00015092,2]
[346745454,1735260654003,-500.0,0.00015092,2]
[346745455,1735260654012,-500.0,0.00015092,2]
[346745456,1735260654022,-500.0,0.00015092,2]
[346745457,1735260654031,-500.0,0.00015092,2]
[346745458,1735260654041,-500.0,0.00015092,2]
[346745459,1735260654050,-500.0,0.00015092,2]
[346745460,1735260654060,-500.0,0.00015092,2]
[346745461,1735260654069,-500.0,0.00015092,2]
[346745462,1735260654079,-500.0,0.00015092,2]
[346745463,1735260654089,-500.0,0.00015092,2]
[346745464,1735260654098,-500.0,0.00015092,2]
[346745465,1735260654108,-500.0,0.00015092,2]
[346745466,1735260654117,-500.0,0.00015092,2]
[346745467,1735260654127,-500.0,0.00015092,2]
[346745468,1735260654136,-500.0,0.00015092,2]
[346745469,1735260654146,-500.0,0.00015092,2]
[346745470,1735260654155,-1144.15,0.00015092,2]
[346745471,1735260654165,-500.0,0.00015092,2]
[346745472,1735260654175,-500.0,0.00015092,2]
[346745473,1735260654184,-500.0,0.00015092,2]
[346745474,1735260654193,-500.0,0.00015092,2]
[346745475,1735260654203,-500.0,0.00015092,2]
[346745476,1735260654212,-500.0,0.00015092,2]
[346745477,1735260654222,-500.0,0.00015092,2]
[346745478,1735260654232,-783.27,0.00015093,2]
[346745479,1735260654241,-151.0,0.000151,2]
[346745480,1735260654250,-3706.1,0.00015104,2]
[346745481,1735260654260,-453.98,0.00015144,2]
[346745482,1735260654269,-500.0,0.00015144,2]
[346745483,1735260654279,-500.0,0.00015144,2]
[346745484,1735260654288,-500.0,0.00015144,2]
[346745485,1735260654297,-720.88,0.00015144,2]
[346745486,1735260654306,-512.91492531,0.00015144,2]
[346745487,1735260654315,-500.0,0.00015144,2]
[346745488,1735260654325,-635.92,0.00015144,2]
[346745489,1735260654334,-500.0,0.00015144,2]
[346745490,1735260654344,-500.0,0.00015144,2]
[346745491,1735260654353,-1106.95,0.00015144,2]
[346745492,1735260654364,-500.0,0.00015144,2]
[346745493,1735260654373,-500.0,0.00015144,2]
[346745494,1735260654383,-500.0,0.00015144,2]
[346745495,1735260654392,-500.0,0.00015144,2]
[346745496,1735260654402,-500.0,0.00015144,2]
[346745497,1735260654411,-500.0,0.00015144,2]
[346745498,1735260654421,-596.5,0.00015144,2]
[346745499,1735260654431,-14242.44,0.00015144,2]
[346745500,1735260654440,-509.68,0.00015144,2]
[346745501,1735260654450,-581.96,0.00015144,2]
[346745502,1735260654459,-209.51776109,0.00015144,2]
[346745503,1735260654469,-694.83,0.00015144,2]
[346745504,1735260654479,-500.0,0.00015144,2]
[346745505,1735260654489,-510.14,0.00015144,2]
[346745506,1735260654498,-500.0,0.00015144,2]
[346745507,1735260654508,-500.0,0.00015144,2]
[346745508,1735260654517,-523.05,0.00015144,2]
[346745509,1735260654527,-500.0,0.00015144,2]
[346745510,1735260654536,-500.0,0.00015145,2]
[346745511,1735260654545,-500.0,0.00015145,2]
[346745512,1735260654555,-409.24236008,0.00015145,2]
[346745513,1735260654564,-602.83,0.00015145,2]
[346745514,1735260654574,-154.425607,0.00015145,2]
[346745515,1735260654583,-154.425607,0.00015145,2]
[346745516,1735260654593,-288.54114,0.00015145,2]
[346745517,1735260654602,-288.54114,0.00015145,2]
[346745518,1735260654612,-151.0,0.00015145,2]
[346745519,1735260654621,-151.0,0.00015145,2]
[346745520,1735260654632,-500.0,0.00015145,2]
[346745521,1735260654641,-151.0,0.00015145,2]
[346745522,1735260654653,-4012.62,0.00015145,2]
[346745523,1735260654662,-151.0,0.00015145,2]
[346745524,1735260654672,-465.081931,0.00015145,2]
[346745525,1735260654681,-465.081931,0.00015145,2]
[346745526,1735260654691,-151.0,0.00015145,2]
[346745527,1735260654700,-500.0,0.00015145,2]
[346745528,1735260654710,-917.05,0.00015181,2]
[346745529,1735260654720,-500.0,0.00015181,2]
[346745530,1735260654729,-500.0,0.00015182,2]
[346745531,1735260654739,-500.0,0.00015182,2]
[346745532,1735260654748,-5409.76,0.00015182,2]
[346745533,1735260654758,-1644.65,0.00015182,2]
[346745534,1735260654767,-259.8,0.00015182,2]
[346745535,1735260654776,-569.21,0.00015182,2]
[346745536,1735260654786,-514.94,0.00015182,2]
[346745537,1735260654795,-715.98,0.00015182,2]
[346745538,1735260654804,-500.0,0.00015364,2]
[346745539,1735260654813,-555.23,0.00015364,2]
[346745540,1735260654822,-434.2,0.00015364,2]
[346745541,1735260654831,-500.0,0.00015364,2]
[346745542,1735260654841,-500.0,0.00015364,2]
[346745543,1735260654850,-401.23889,0.00015364,2]
[346745544,1735260654859,-401.23889,0.00015364,2]
[346745545,1735260654869,-151.0,0.00015364,2]
[346745546,1735260654878,-560.0,0.00015364,2]
[346745547,1735260654887,-2678.36,0.00015364,2]
[346745548,1735260654897,-500.0,0.00015364,2]
[346745549,1735260654906,-500.0,0.00015364,2]
[346745550,1735260654915,-151.0,0.00015364,2]
[346745551,1735260654925,-500.0,0.00015366,2]
[346745552,1735260654934,-500.0,0.00015366,2]
[346745553,1735260654943,-500.0,0.00015366,2]
[346745554,1735260654954,-500.0,0.00015366,2]
[346745555,1735260654963,-500.0,0.00015366,2]
[346745556,1735260654973,-500.0,0.00015366,2]
[346745557,1735260654982,-500.0,0.00015366,2]
[346745558,1735260654992,-500.0,0.00015366,2]
[346745559,1735260655001,-500.0,0.00015366,2]
[346745560,1735260655011,-500.0,0.00015366,2]
[346745561,1735260655020,-500.0,0.00015366,2]
[346745562,1735260655030,-500.0,0.00015366,2]
[346745563,1735260655040,-500.0,0.00015366,2]
[346745564,1735260655049,-500.0,0.00015366,2]
[346745565,1735260655059,-500.0,0.00015366,2]
[346745566,1735260655069,-500.0,0.00015366,2]
[346745567,1735260655160,-500.0,0.00015366,2]
[346745568,1735260655172,-500.0,0.00015366,2]
[346745569,1735260655182,-500.0,0.00015366,2]
[346745570,1735260655192,-500.0,0.00015366,2]
[346745571,1735260655202,-500.0,0.00015366,2]
[346745572,1735260655211,-500.0,0.00015366,2]
[346745573,1735260655222,-500.0,0.00015366,2]
[346745574,1735260655231,-500.0,0.00015366,2]
[346745575,1735260655240,-500.0,0.00015366,2]
[346745576,1735260655250,-580.58399952,0.00015366,2]
[346745577,1735260655259,-500.0,0.00015366,2]
[346745578,1735260655269,-500.0,0.00015366,2]
[346745579,1735260655278,-500.0,0.00015366,2]
[346745580,1735260655287,-500.0,0.00015366,2]
[346745581,1735260655296,-500.0,0.00015366,2]
[346745582,1735260655305,-500.0,0.00015366,2]
[346745583,1735260655315,-500.0,0.00015366,2]
[346745584,1735260655324,-500.0,0.00015366,2]
[346745585,1735260655333,-500.0,0.00015366,2]
[346745586,1735260655342,-500.0,0.00015366,2]
[346745587,1735260655351,-500.0,0.00015366,2]
[346745588,1735260655360,-500.0,0.00015366,2]
[346745589,1735260655370,-500.0,0.00015366,2]
[346745590,1735260655379,-850.96,0.00015366,2]
[346745591,1735260655389,-500.0,0.00015366,2]
[346745592,1735260655398,-500.0,0.00015366,2]
[346745593,1735260655408,-500.0,0.00015366,2]
[346745594,1735260655417,-500.0,0.00015366,2]
[346745595,1735260655426,-500.0,0.00015366,2]
[346745596,1735260655436,-500.0,0.00015366,2]
[346745597,1735260655445,-165.344239,0.00015366,2]
[346745598,1735260655456,-500.0,0.00015366,2]
[346745599,1735260655465,-577.15784387,0.00015366,2]
[346745600,1735260655474,-151.0,0.00015366,2]
[346745601,1735260655483,-500.0,0.00015366,2]
[346745602,1735260655492,-500.0,0.00015366,2]
[346745603,1735260655501,-510.31,0.00015366,2]
[346745604,1735260655511,-500.0,0.00015366,2]
[346745605,1735260655520,-689.53,0.00015366,2]
[346745606,1735260655529,-151.0,0.00015366,2]
[346745607,1735260655538,-500.0,0.00015366,2]
[346745608,1735260655547,-500.0,0.00015366,2]
[346745609,1735260655557,-500.0,0.00015366,2]
[346745610,1735260655566,-500.0,0.00015366,2]
[346745611,1735260655575,-500.0,0.00015366,2]
[346745612,1735260655584,-500.0,0.00015366,2]
[346745613,1735260655593,-500.0,0.00015366,2]
[346745614,1735260655603,-500.0,0.00015366,2]
[346745615,1735260655613,-500.0,0.00015366,2]
[346745616,1735260655622,-500.0,0.00015366,2]
[346745617,1735260655631,-500.0,0.00015366,2]
[346745618,1735260655640,-500.0,0.00015366,2]
[346745619,1735260655649,-500.0,0.00015366,2]
[346745620,1735260655659,-500.0,0.00015366,2]
[346745621,1735260655668,-500.0,0.00015366,2]
[346745622,1735260655678,-1144.15,0.00015366,2]
[346745623,1735260655687,-500.0,0.00015366,2]
[346745624,1735260655698,-591.46,0.00015366,2]
[346745625,1735260655707,-151.0,0.00015366,2]
[346745626,1735260655716,-500.0,0.00015366,2]
[346745627,1735260655725,-500.0,0.00015366,2]
[346745628,1735260655734,-500.0,0.00015366,2]
[346745629,1735260655743,-783.27,0.00015367,2]
[346745630,1735260655753,-151.0,0.000154,2]
[346745631,1735260655762,-500.0,0.00015418,2]
[346745632,1735260655771,-500.0,0.00015418,2]
[346745633,1735260655780,-500.0,0.00015418,2]
[346745634,1735260655789,-720.88,0.00015418,2]
[346745635,1735260655798,-500.0,0.00015418,2]
[346745636,1735260655808,-635.92,0.00015418,2]
[346745637,1735260655818,-500.0,0.00015418,2]
[346745638,1735260655827,-500.0,0.00015418,2]
[346745639,1735260655836,-1106.95,0.00015418,2]
[346745640,1735260655846,-505.51,0.00015418,2]
[346745641,1735260655857,-500.0,0.00015418,2]
[346745642,1735260655867,-366.62,0.00015418,2]
[346745643,1735260655877,-500.0,0.00015418,2]
[346745644,1735260655887,-500.0,0.00015418,2]
[346745645,1735260655896,-500.0,0.00015418,2]
[346745646,1735260655905,-596.5,0.00015418,2]
[346745647,1735260655915,-14242.44,0.00015418,2]
[346745648,1735260655924,-509.68,0.00015418,2]
[346745649,1735260655934,-581.96,0.00015418,2]
[346745650,1735260655945,-694.83,0.00015418,2]
[346745651,1735260655954,-279.11,0.00015418,2]
[346745652,1735260655963,-510.14,0.00015418,2]
[346745653,1735260655972,-500.0,0.00015418,2]
[346745654,1735260655982,-500.0,0.00015418,2]
[346745655,1735260655991,-500.0,0.00015418,2]
[346745656,1735260656001,-178.5,0.00015419,2]
[346745657,1735260656011,-500.0,0.00015419,2]
[346745658,1735260656021,-217.985358,0.00015419,2]
[346745659,1735260656031,-151.0,0.00015419,2]
[346745660,1735260656041,-250.326887,0.00015419,2]
[346745661,1735260656051,-217.985358,0.00015419,2]
[346745662,1735260656060,-250.326887,0.00015419,2]
[346745663,1735260656069,-151.39949,0.00015419,2]
[346745664,1735260656079,-317.22256,0.00015419,2]
[346745665,1735260656088,-317.22256,0.00015419,2]
[346745666,1735260656098,-500.0,0.00015419,2]
[346745667,1735260656107,-4012.62,0.00015419,2]
[346745668,1735260656118,-500.0,0.00015419,2]
[346745669,1735260656130,-917.05,0.00015455,2]
[346745670,1735260656139,-500.0,0.00015455,2]
[346745671,1735260656149,-286.76,0.00015456,2]
[346745672,1735260656159,-500.0,0.00015456,2]
[346745673,1735260656168,-5409.76,0.00015456,2]
[346745674,1735260656180,-1644.65,0.00015456,2]
[346745675,1735260656190,-514.94,0.00015456,2]
[346745676,1735260656199,-715.98,0.00015456,2]
[346745677,1735260656209,-598.0,0.00015465,2]
[346745678,1735260656219,-3706.1,0.00015637,2]
[346745679,1735260656228,-500.0,0.00015638,2]
[346745680,1735260656238,-500.0,0.00015638,2]
[346745681,1735260656248,-500.0,0.00015638,2]
[346745682,1735260656257,-560.0,0.00015638,2]
[346745683,1735260656267,-2678.36,0.00015638,2]
[346745684,1735260656276,-500.0,0.00015638,2]
[346745685,1735260656285,-500.0,0.00015638,2]
[346745686,1735260656294,-500.0,0.0001564,2]
[346745687,1735260656304,-500.0,0.0001564,2]
[346745688,1735260656313,-500.0,0.0001564,2]
[346745689,1735260656322,-500.0,0.0001564,2]
[346745690,1735260656331,-500.0,0.0001564,2]
[346745691,1735260656340,-500.0,0.0001564,2]
[346745692,1735260656350,-500.0,0.0001564,2]
[346745693,1735260656359,-500.0,0.0001564,2]
[346745694,1735260656368,-500.0,0.0001564,2]
[346745695,1735260656377,-500.0,0.0001564,2]
[346745696,1735260656387,-500.0,0.0001564,2]
[346745697,1735260656396,-500.0,0.0001564,2]
[346745698,1735260656406,-500.0,0.0001564,2]
[346745699,1735260656415,-500.0,0.0001564,2]
[346745700,1735260656425,-500.0,0.0001564,2]
[346745701,1735260656434,-500.0,0.0001564,2]
[346745702,1735260656445,-500.0,0.0001564,2]
[346745703,1735260656454,-500.0,0.0001564,2]
[346745704,1735260656463,-500.0,0.0001564,2]
[346745705,1735260656472,-500.0,0.0001564,2]
[346745706,1735260656482,-500.0,0.0001564,2]
[346745707,1735260656491,-500.0,0.0001564,2]
[346745708,1735260656500,-500.0,0.0001564,2]
[346745709,1735260656510,-500.0,0.0001564,2]
[346745710,1735260656519,-500.0,0.0001564,2]
[346745711,1735260656529,-500.0,0.0001564,2]
[346745712,1735260656538,-500.0,0.0001564,2]
[346745713,1735260656547,-500.0,0.0001564,2]
[346745714,1735260656556,-500.0,0.0001564,2]
[346745715,1735260656565,-500.0,0.0001564,2]
[346745716,1735260656575,-232.37238896,0.0001564,2]
[346745717,1735260656585,-500.0,0.0001564,2]
[346745718,1735260656594,-500.0,0.0001564,2]
[346745719,1735260656603,-500.0,0.0001564,2]
[346745720,1735260656613,-500.0,0.0001564,2]
[346745721,1735260656622,-500.0,0.0001564,2]
[346745722,1735260656631,-850.96,0.0001564,2]
[346745723,1735260656641,-500.0,0.0001564,2]
[346745724,1735260656650,-500.0,0.0001564,2]
[346745725,1735260656659,-500.0,0.0001564,2]
[346745726,1735260656669,-151.0,0.0001564,2]
[346745727,1735260656678,-500.0,0.0001564,2]
[346745728,1735260656687,-500.0,0.0001564,2]
[346745729,1735260656697,-500.0,0.0001564,2]
[346745730,1735260656708,-597.953737,0.0001564,2]
[346745731,1735260656719,-597.953737,0.0001564,2]
[346745732,1735260656728,-500.0,0.0001564,2]
[346745733,1735260656738,-500.0,0.0001564,2]
[346745734,1735260656747,-510.31,0.0001564,2]
[346745735,1735260656758,-546.581516,0.0001564,2]
[346745736,1735260656767,-500.0,0.0001564,2]
[346745737,1735260656776,-346.15069,0.0001564,2]
[346745738,1735260656787,-546.581516,0.0001564,2]
[346745739,1735260656796,-346.15069,0.0001564,2]
[346745740,1735260656805,-689.53,0.0001564,2]
[346745741,1735260656815,-500.0,0.0001564,2]
[346745742,1735260656824,-165.37022,0.0001564,2]
[346745743,1735260656833,-165.37022,0.0001564,2]
[346745744,1735260656842,-500.0,0.0001564,2]
[346745745,1735260656851,-500.0,0.0001564,2]
[346745746,1735260656860,-500.0,0.0001564,2]
[346745747,1735260656869,-500.0,0.0001564,2]
[346745748,1735260656878,-500.0,0.0001564,2]
[346745749,1735260656888,-500.0,0.0001564,2]
[346745750,1735260656897,-500.0,0.0001564,2]
[346745751,1735260656906,-500.0,0.0001564,2]
[346745752,1735260656915,-500.0,0.0001564,2]
[346745753,1735260656924,-500.0,0.0001564,2]
[346745754,1735260656933,-500.0,0.0001564,2]
[346745755,1735260656943,-500.0,0.0001564,2]
[346745756,1735260656953,-1144.15,0.0001564,2]
[346745757,1735260656963,-500.0,0.0001564,2]
[346745758,1735260656972,-500.0,0.0001564,2]
[346745759,1735260656982,-500.0,0.0001564,2]
[346745760,1735260657072,-500.0,0.0001564,2]
[346745761,1735260657082,-783.27,0.00015641,2]
[346745762,1735260657092,-500.0,0.00015653,2]
[346745763,1735260657102,-500.0,0.00015653,2]
[346745764,1735260657112,-500.0,0.00015653,2]
[346745765,1735260657121,-5162.5,0.00015653,2]
[346745766,1735260657130,-500.0,0.00015692,2]
[346745767,1735260657141,-500.0,0.00015692,2]
[346745768,1735260657151,-500.0,0.00015692,2]
[346745769,1735260657161,-720.88,0.00015692,2]
[346745770,1735260657175,-450.53,0.00015692,2]
[346745771,1735260657185,-635.92,0.00015692,2]
[346745772,1735260657195,-500.0,0.00015692,2]
[346745773,1735260657206,-500.0,0.00015692,2]
[346745774,1735260657218,-1106.95,0.00015692,2]
[346745775,1735260657228,-500.0,0.00015692,2]
[346745776,1735260657238,-500.0,0.00015692,2]
[346745777,1735260657247,-500.0,0.00015692,2]
[346745778,1735260657257,-500.0,0.00015692,2]
[346745779,1735260657268,-596.5,0.00015692,2]
[346745780,1735260657278,-14242.44,0.00015692,2]
[346745781,1735260657287,-509.68,0.00015692,2]
[346745782,1735260657298,-581.96,0.00015692,2]
[346745783,1735260657308,-694.83,0.00015692,2]
[346745784,1735260657318,-510.14,0.00015692,2]
[346745785,1735260657328,-500.0,0.00015692,2]
[346745786,1735260657338,-424.82,0.00015692,2]
[346745787,1735260657348,-500.0,0.00015692,2]
[346745788,1735260657357,-572.98,0.00015693,2]
[346745789,1735260657367,-500.0,0.00015693,2]
[346745790,1735260657378,-4012.62,0.00015693,2]
[346745791,1735260657387,-500.0,0.00015693,2]
[346745792,1735260657397,-917.05,0.00015729,2]
[346745793,1735260657407,-500.0,0.00015729,2]
[346745794,1735260657417,-625.27,0.0001573,2]
[346745795,1735260657426,-5409.76,0.0001573,2]
[346745796,1735260657436,-1644.65,0.0001573,2]
[346745797,1735260657445,-514.94,0.0001573,2]
[346745798,1735260657456,-715.98,0.0001573,2]
[346745799,1735260657466,-151.0,0.000158,2]
[346745800,1735260657475,-500.0,0.00015912,2]
[346745801,1735260657486,-500.0,0.00015912,2]
[346745802,1735260657495,-500.0,0.00015912,2]
[346745803,1735260657505,-560.0,0.00015912,2]
[346745804,1735260657515,-2678.36,0.00015912,2]
[346745805,1735260657524,-500.0,0.00015912,2]
[346745806,1735260657534,-301.18,0.00015912,2]
[346745807,1735260657543,-500.0,0.00015914,2]
[346745808,1735260657552,-351.19,0.00015914,2]
[346745809,1735260657563,-342.59447154,0.00015914,2]
[346745810,1735260657573,-500.0,0.00015914,2]
[346745811,1735260657582,-500.0,0.00015914,2]
[346745812,1735260657592,-500.0,0.00015914,2]
[346745813,1735260657601,-500.0,0.00015914,2]
[346745814,1735260657611,-500.0,0.00015914,2]
[346745815,1735260657620,-500.0,0.00015914,2]
[346745816,1735260657630,-500.0,0.00015914,2]
[346745817,1735260657639,-500.0,0.00015914,2]
[346745818,1735260657648,-500.0,0.00015914,2]
[346745819,1735260657658,-500.0,0.00015914,2]
[346745820,1735260657667,-500.0,0.00015914,2]
[346745821,1735260657676,-500.0,0.00015914,2]
[346745822,1735260657685,-500.0,0.00015914,2]
[346745823,1735260657695,-500.0,0.00015914,2]
[346745824,1735260657705,-500.0,0.00015914,2]
[346745825,1735260657714,-500.0,0.00015914,2]
[346745826,1735260657723,-500.0,0.00015914,2]
[346745827,1735260657732,-207.69142252,0.00015914,2]
[346745828,1735260657742,-500.0,0.00015914,2]
[346745829,1735260657751,-500.0,0.00015914,2]
[346745830,1735260657760,-500.0,0.00015914,2]
[346745831,1735260657769,-500.0,0.00015914,2]
[346745832,1735260657779,-500.0,0.00015914,2]
[346745833,1735260657788,-500.0,0.00015914,2]
[346745834,1735260657797,-500.0,0.00015914,2]
[346745835,1735260657807,-500.0,0.00015914,2]
[346745836,1735260657816,-850.96,0.00015914,2]
[346745837,1735260657826,-500.0,0.00015914,2]
[346745838,1735260657835,-500.0,0.00015914,2]
[346745839,1735260657844,-500.0,0.00015914,2]
[346745840,1735260657854,-503.52497012,0.00015914,2]
[346745841,1735260657864,-500.0,0.00015914,2]
[346745842,1735260657874,-500.0,0.00015914,2]
[346745843,1735260657883,-500.0,0.00015914,2]
[346745844,1735260657894,-510.31,0.00015914,2]
[346745845,1735260657903,-500.0,0.00015914,2]
[346745846,1735260657912,-689.53,0.00015914,2]
[346745847,1735260657921,-500.0,0.00015914,2]
[346745848,1735260657931,-500.0,0.00015914,2]
[346745849,1735260657940,-500.0,0.00015914,2]
[346745850,1735260657949,-500.0,0.00015914,2]
[346745851,1735260657959,-500.0,0.00015914,2]
[346745852,1735260657968,-500.0,0.00015914,2]
[346745853,1735260657978,-500.0,0.00015914,2]
[346745854,1735260657990,-500.0,0.00015914,2]
[346745855,1735260657999,-500.0,0.00015914,2]
[346745856,1735260658009,-500.0,0.00015914,2]
[346745857,1735260658018,-500.0,0.00015914,2]
[346745858,1735260658029,-500.0,0.00015914,2]
[346745859,1735260658038,-500.0,0.00015914,2]
[346745860,1735260658048,-1144.15,0.00015914,2]
[346745861,1735260658058,-500.0,0.00015914,2]
[346745862,1735260658067,-500.0,0.00015914,2]
[346745863,1735260658076,-754.743634,0.00015915,2]
[346745864,1735260658086,-754.743634,0.00015915,2]
[346745865,1735260658095,-783.27,0.00015915,2]
[346745866,1735260658105,-1089.582433,0.00015915,2]
[346745867,1735260658114,-500.0,0.00015927,2]
[346745868,1735260658123,-500.0,0.00015927,2]
[346745869,1735260658133,-500.0,0.00015927,2]
[346745870,1735260658142,-5162.5,0.00015927,2]
[346745871,1735260658152,-500.0,0.00015966,2]
[346745872,1735260658162,-415.88,0.00015966,2]
[346745873,1735260658172,-500.0,0.00015966,2]
[346745874,1735260658183,-720.88,0.00015966,2]
[346745875,1735260658193,-635.92,0.00015966,2]
[346745876,1735260658203,-500.0,0.00015966,2]
[346745877,1735260658212,-500.0,0.00015966,2]
[346745878,1735260658222,-1106.95,0.00015966,2]
[346745879,1735260658232,-500.0,0.00015966,2]
[346745880,1735260658242,-500.0,0.00015966,2]
[346745881,1735260658251,-500.0,0.00015966,2]
[346745882,1735260658261,-500.0,0.00015966,2]
[346745883,1735260658270,-596.5,0.00015966,2]
[346745884,1735260658280,-14242.44,0.00015966,2]
[346745885,1735260658290,-509.68,0.00015966,2]
[346745886,1735260658300,-581.96,0.00015966,2]
[346745887,1735260658310,-694.83,0.00015966,2]
[346745888,1735260658319,-510.14,0.00015966,2]
[346745889,1735260658329,-500.0,0.00015966,2]
[346745890,1735260658338,-500.0,0.00015966,2]
[346745891,1735260658347,-500.0,0.00015967,2]
[346745892,1735260658356,-4012.62,0.00015967,2]
[346745893,1735260658366,-500.0,0.00015967,2]
[346745894,1735260658375,-8255.27577089,0.00015996,2]
[346745895,1735260658384,-917.05,0.00016003,2]
[346745896,1735260658394,-229.29648523,0.00016003,2]
[346745897,1735260658404,-154.425607,0.00016004,2]
[346745898,1735260658414,-154.425607,0.00016004,2]
[346745899,1735260658423,-288.54114,0.00016004,2]
[346745900,1735260658433,-288.54114,0.00016004,2]
[346745901,1735260658442,-151.0,0.00016004,2]
[346745902,1735260658453,-151.0,0.00016004,2]
[346745903,1735260658463,-151.0,0.00016004,2]
[346745904,1735260658473,-5409.76,0.00016004,2]
[346745905,1735260658482,-151.0,0.00016004,2]
[346745906,1735260658491,-465.081931,0.00016004,2]
[346745907,1735260658501,-465.081931,0.00016004,2]
[346745908,1735260658511,-151.0,0.00016004,2]
[346745909,1735260658520,-1644.65,0.00016004,2]
[346745910,1735260658530,-514.94,0.00016004,2]
[346745911,1735260658539,-715.98,0.00016004,2]
[346745912,1735260658548,-590.42667091,0.00016118,2]
[346745913,1735260658558,-3706.1,0.00016185,2]
[346745914,1735260658567,-500.0,0.00016186,2]
[346745915,1735260658576,-500.0,0.00016186,2]
[346745916,1735260658585,-500.0,0.00016186,2]
[346745917,1735260658595,-401.23889,0.00016186,2]
[346745918,1735260658604,-401.23889,0.00016186,2]
[346745919,1735260658615,-151.904244,0.00016186,2]
[346745920,1735260658624,-560.0,0.00016186,2]
[346745921,1735260658634,-2678.36,0.00016186,2]
[346745922,1735260658643,-500.0,0.00016186,2]
[346745923,1735260658653,-151.0,0.00016186,2]
[346745924,1735260658663,-500.0,0.00016188,2]
[346745925,1735260658672,-500.0,0.00016188,2]
[346745926,1735260658682,-500.0,0.00016188,2]
[346745927,1735260658691,-500.0,0.00016188,2]
[346745928,1735260658700,-500.0,0.00016188,2]
[346745929,1735260658711,-500.0,0.00016188,2]
[346745930,1735260658720,-500.0,0.00016188,2]
[346745931,1735260658729,-500.0,0.00016188,2]
[346745932,1735260658739,-500.0,0.00016188,2]
[346745933,1735260658748,-500.0,0.00016188,2]
[346745934,1735260658757,-500.0,0.00016188,2]
[346745935,1735260658766,-500.0,0.00016188,2]